bitfinex-derivatives/quotes_SOLF0:USTF0_20250505
["timestamp","ask_amount","ask_price","bid_price","bid_amount"]
[1746409859561,6.9916,143.03,143.01,29.34]
[1746409860457,6.9907,143.04,143.01,29.34]
[1746409860654,5.37065085,143.09,143.01,29.34]
[1746409861263,6.9909,143.04,143.01,36.3321]
[1746409861559,5.37065085,143.09,143.01,29.34]
[1746409862064,29.34,143.1,143.01,34.71065085]
[1746409862465,6.9886,143.09,143.05,6.9901]
[1746409862858,6.9886,143.09,143.05,36.3301]
[1746409863261,6.9886,143.09,143.06,6.9897]
[1746409863462,6.9886,143.09,143.05,29.34]
[1746409863961,6.9886,143.09,143.05,36.33]
[1746409864265,6.9887,143.08,143.05,36.33]
[1746409864467,6.9887,143.08,143.05,29.34]
[1746409864966,6.9887,143.08,143.05,36.3301]
[1746409865265,29.34,143.13,143.05,36.3301]
[1746409865266,29.34,143.13,143.05,29.34]
[1746409865964,6.9889,143.08,143.05,29.34]
[1746409866668,6.9884,143.09,143.05,36.3301]
[1746409866967,29.34,143.13,143.05,29.34]
[1746409867168,6.9875,143.11,143.07,6.9891]
[1746409870572,6.9869,143.12,143.08,6.9885]
[1746409870870,583.2,143.16,143.07,2.1439]
[1746409871374,29.32,143.16,143.09,6.9881]
[1746409871672,29.32,143.16,143.09,36.1281]
[1746409871975,29.32,143.16,143.09,29.14]
[1746409872174,29.32,143.16,143.07,2.1439]
[1746409872474,6.9886,143.09,143.07,2.1439]
[1746409872773,29.32,143.16,143.07,2.1439]
[1746409872974,6.9882,143.09,143.07,2.1439]
[1746409873270,29.32,143.16,143.07,2.1439]
[1746409873577,6.988,143.1,143.07,2.1439]
[1746409874671,6.9884,143.09,143.07,2.1439]
[1746409874972,29.32,143.16,143.06,4.0607]
[1746409875171,6.9878,143.1,143.06,11.0501]
[1746409875371,6.9878,143.1,143.06,4.0607]
[1746409875676,29.32,143.16,143.06,4.0607]
[1746409875876,6.9865,143.13,143.09,6.9881]
[1746409876179,6.9865,143.13,143.06,4.0607]
[1746409876476,6.986,143.14,143.06,4.0607]
[1746409877277,6.9856,143.15,143.06,4.0607]
[1746409877876,6.9851,143.16,143.08,8.61779495]
[1746409878181,29.14,143.22,143.09,31.2499]
[1746409878583,6.9839,143.18,143.09,31.2499]
[1746409879587,6.9839,143.18,143.13,6.9859]
[1746409879786,6.9839,143.18,143.14,29.14]
[1746409880089,6.9839,143.18,143.14,36.1257]
[1746409880484,29.14,143.22,143.14,29.14]
[1746409880684,29.14,143.22,143.15,4.149]
[1746409881385,6.9842,143.18,143.15,4.149]
[1746409881692,29.14,143.22,143.15,4.149]
[1746409881985,6.9848,143.16,143.14,29.14]
[1746409882185,29.14,143.22,143.14,29.14]
[1746409882988,29.14,143.22,143.14,36.1256]
[1746409883490,29.14,143.22,143.16,6.9848]
[1746409883787,29.14,143.22,143.14,29.14]
[1746409883989,29.12,143.25,143.14,29.14]
[1746409884188,29.12,143.26,143.15,2.0956]
[1746409884690,6.9822,143.22,143.15,2.0956]
[1746409884884,29.12,143.26,143.15,2.0956]
[1746409885495,6.9824,143.21,143.17,6.9839]
[1746409885693,29.12,143.26,143.17,6.9839]
[1746409886086,6.9826,143.21,143.17,6.9839]
[1746409886292,37.73779495,143.26,143.15,2.0956]
[1746409886794,6.9838,143.19,143.15,2.0956]
[1746409886990,37.73779495,143.26,143.15,2.0956]
[1746409887295,29.12,143.26,143.15,9.0809]
[1746409887594,29.12,143.26,143.15,2.0956]
[1746409887793,6.9834,143.19,143.15,9.0805]
[1746409888093,29.12,143.26,143.15,9.0805]
[1746409889593,6.9837,143.19,143.15,9.0805]
[1746409890695,6.9839,143.18,143.15,9.0805]
[1746409891088,29.12,143.22,143.14,36.1256]
[1746409891295,29.12,143.22,143.14,29.14]
[1746409891787,29.12,143.22,143.12,557.404]
[1746409891996,6.9854,143.15,143.12,557.404]
[1746409892191,6.9854,143.15,143.12,4.104]
[1746409892696,6.9847,143.17,143.12,4.104]
[1746409893097,29.12,143.22,143.12,4.104]
[1746409893296,6.9836,143.19,143.15,6.985]
[1746409893995,6.983,143.2,143.16,6.9847]
[1746409894295,29.12,143.22,143.15,29.12]
[1746409894694,6.9837,143.19,143.15,36.105]
[1746409894895,29.12,143.22,143.15,29.12]
[1746409895596,6.983,143.2,143.16,6.9847]
[1746409896895,6.9825,143.21,143.15,29.12]
[1746409897097,29.12,143.25,143.15,29.12]
[1746409897298,29.12,143.25,143.16,2.1341]
[1746409897997,6.9835,143.19,143.16,2.1341]
[1746409898191,29.12,143.25,143.16,2.1341]
[1746409898497,6.9827,143.21,143.17,6.9839]
[1746409898697,29.12,143.25,143.16,2.1341]
[1746409899090,6.9817,143.23,143.19,6.983]
[1746409899294,29.12,143.28,143.19,29.12]
[1746409899496,29.12,143.28,143.2,4.2198]
[1746409899697,6.9807,143.25,143.21,6.9821]
[1746409899996,29.12,143.28,143.2,4.2198]
[1746409900198,6.9794,143.27,143.22,6.9815]
[1746409900698,6.9794,143.27,143.23,28.94]
[1746409901699,28.94,143.31,143.23,28.94]
[1746409902099,6.9797,143.27,143.23,28.94]
[1746409902598,6.9801,143.26,143.23,28.94]
[1746409903401,6.9805,143.25,143.23,28.94]
[1746409910606,6.9809,143.24,143.23,28.94]
[1746409915702,6.9806,143.25,143.2,4.2198]
[1746409916004,34.31296935,143.31,143.2,33.1398]
[1746409916204,4.41369574,143.3,143.2,33.1398]
[1746409916405,34.31296935,143.31,143.2,33.1398]
[1746409916607,4.41475438,143.3,143.2,33.1398]
[1746409916809,34.31296935,143.31,143.2,33.1398]
[1746409917009,4.41471771,143.3,143.21,6.9822]
[1746409917202,34.31296935,143.31,143.21,6.9822]
[1746409917502,4.41150827,143.3,143.22,6.9818]
[1746409917706,34.31296935,143.31,143.22,6.9818]
[1746409918003,4.41362534,143.3,143.22,6.9818]
[1746409918208,6.9794,143.28,143.23,6.9813]
[1746409918508,6.9794,143.28,143.2,33.1398]
[1746409918708,6.9794,143.28,143.24,6.9808]
[1746409918909,6.9795,143.27,143.24,6.9808]
[1746409919114,34.31296935,143.31,143.24,6.9808]
[1746409919708,6.9794,143.28,143.24,6.9808]
[1746409920110,6.9797,143.27,143.24,6.9808]
[1746409921411,6.9797,143.27,143.23,6.9812]
[1746409922213,6.9801,143.26,143.23,6.9812]
[1746409922815,6.9796,143.27,143.23,6.9812]
[1746409923514,6.98,143.26,143.23,6.9812]
[1746409924416,6.9806,143.25,143.22,6.9817]
[1746409924719,34.31296935,143.31,143.2,33.1398]
[1746409924923,4.41705397,143.3,143.2,33.1398]
[1746409925117,6.9798,143.27,143.23,6.9811]
[1746409925413,34.31296935,143.31,143.23,6.9811]
[1746409925613,4.41714544,143.3,143.23,6.9811]
[1746409925915,34.31296935,143.31,143.23,6.9811]
[1746409926215,4.41538292,143.3,143.23,6.9811]
[1746409926408,6.9802,143.26,143.23,6.9811]
[1746409927321,6.9804,143.25,143.22,6.9817]
[1746409927614,34.31296935,143.31,143.2,33.1398]
[1746409927816,4.41270716,143.3,143.2,33.1398]
[1746409928115,34.31296935,143.31,143.22,6.9819]
[1746409928315,4.41346612,143.3,143.22,6.9819]
[1746409928517,34.31296935,143.31,143.22,6.9819]
[1746409928716,4.41385184,143.3,143.22,6.9819]
[1746409928918,4.41420542,143.29,143.22,6.9819]
[1746409929118,34.31296935,143.31,143.22,6.9819]
[1746409929418,6.9805,143.25,143.22,6.9819]
[1746409930113,6.9801,143.26,143.23,6.9814]
[1746409930620,34.31296935,143.31,143.2,33.1398]
[1746409930817,6.9805,143.25,143.22,6.9816]
[1746409931921,6.9805,143.25,143.21,6.9821]
[1746409933221,6.9809,143.24,143.21,6.9821]
[1746409934415,6.9809,143.24,143.2,40.1224]
[1746409935919,6.9798,143.27,143.22,5.37296935]
[1746409936309,6.9798,143.27,143.23,6.9809]
[1746409936518,6.9791,143.28,143.22,5.37296935]
[1746409936920,6.9791,143.28,143.24,6.9806]
[1746409937320,6.9791,143.28,143.24,35.7206]
[1746409938420,6.9795,143.27,143.24,35.7206]
[1746409943623,6.9792,143.28,143.24,35.7206]
[1746409946728,6.9786,143.29,143.25,6.9804]
[1746409946915,6.9786,143.29,143.25,11.1031]
[1746409947723,34.11296935,143.34,143.25,4.1227]
[1746409947927,7.43074467,143.33,143.25,4.1227]
[1746409948127,7.43071863,143.32,143.25,4.1227]
[1746409948323,4.43457265,143.31,143.25,4.1227]
[1746409948526,5.37296935,143.38,143.25,9.49566935]
[1746409948829,7.43124587,143.36,143.28,5.37296935]
[1746409949029,6.9768,143.33,143.29,35.7183]
[1746409951127,34.11296935,143.38,143.29,28.74]
[1746409951425,2.99346637,143.37,143.29,28.74]
[1746409951617,2.99346637,143.36,143.27,6.9793]
[1746409951823,2.99346637,143.35,143.27,6.9793]
[1746409952022,6.978,143.31,143.27,6.9793]
[1746409952323,34.11296935,143.38,143.27,6.9793]
[1746409952525,6.9779,143.31,143.27,6.9793]
[1746409952827,34.11296935,143.38,143.26,30.7819]
[1746409953023,6.9762,143.34,143.28,5.37296935]
[1746409953224,5.37296935,143.41,143.28,5.37296935]
[1746409953528,6.9739,143.39,143.31,5.37296935]
[1746409953735,5.37296935,143.45,143.32,34.9895]
[1746409953923,2.99126548,143.44,143.34,6.9758]
[1746409954124,6.9744,143.38,143.34,6.9758]
[1746409954318,28.74,143.42,143.33,6.9763]
[1746409954523,6.9751,143.36,143.32,34.9895]
[1746409954827,34.11296935,143.42,143.32,34.9895]
[1746409955026,2.98750491,143.41,143.32,32.8411]
[1746409955226,6.9765,143.33,143.32,28.74]
[1746409956428,6.9762,143.34,143.32,28.74]
[1746409956629,5.37296935,143.39,143.32,28.74]
[1746409956819,4.42657737,143.38,143.32,28.74]
[1746409957026,6.9764,143.34,143.32,28.74]
[1746409958132,6.9757,143.35,143.32,28.74]
[1746409958831,6.9757,143.35,143.32,35.7169]
[1746409959034,34.11296935,143.42,143.32,35.7169]
[1746409959533,6.9752,143.36,143.32,39.8825]
[1746409959727,6.9752,143.36,143.32,32.9056]
[1746409960233,6.9752,143.36,143.32,39.8822]
[1746409962831,6.9748,143.37,143.32,39.8822]
[1746409963128,6.9748,143.37,143.33,6.9764]
[1746409963335,3.697,143.37,143.33,6.9764]
[1746409963634,6.9743,143.38,143.34,6.976]
[1746409966136,6.9746,143.37,143.34,6.976]
[1746409966440,34.11296935,143.42,143.34,6.976]
[1746409966634,6.9741,143.38,143.34,6.976]
[1746409967338,26.27826935,143.5,143.34,6.976]
[1746409967339,13.9346,143.53,143.34,366.37296935]
[1746409967534,4.4325411,143.5,143.4,5.37296935]
[1746409967730,33.91296935,143.54,143.41,28.54]
[1746409967935,6.9691,143.49,143.43,6.9715]
[1746409968543,6.9694,143.48,143.42,6.972]
[1746409968735,5.37296935,143.51,143.4,5.37296935]
[1746409969039,37.11453185,143.5,143.41,28.54]
[1746409969331,32.6912,143.5,143.41,28.54]
[1746409969543,6.9703,143.46,143.42,6.972]
[1746409969840,6.9703,143.46,143.41,28.54]
[1746409970043,32.6912,143.5,143.41,28.54]
[1746409971148,6.97,143.47,143.43,6.9716]
[1746409971640,32.6912,143.5,143.43,6.9716]
[1746409971641,6.9703,143.46,143.43,6.9716]
[1746409972145,32.6912,143.5,143.43,6.9716]
[1746409972444,6.97,143.47,143.43,6.9716]
[1746409972844,6.97,143.47,143.41,28.54]
[1746409973345,6.9693,143.48,143.41,28.54]
[1746409973845,6.9693,143.48,143.44,6.9708]
[1746409974034,32.6912,143.5,143.41,28.54]
[1746409974035,6.9689,143.49,143.41,28.54]
[1746409974445,28.54,143.5,143.44,6.9708]
[1746409974639,28.54,143.5,143.41,28.54]
[1746409974945,28.54,143.5,143.43,6.9712]
[1746409975134,6.9696,143.48,143.43,6.9712]
[1746409975748,6.9698,143.47,143.43,6.9712]
[1746409976647,28.54,143.5,143.41,28.54]
[1746409977244,28.54,143.5,143.41,35.5122]
[1746409977546,28.54,143.5,143.41,28.54]
[1746409978145,28.54,143.5,143.42,6.9721]
[1746409978345,28.54,143.5,143.41,28.54]
[1746409978544,6.1887,143.49,143.41,28.54]
[1746409979247,6.9711,143.45,143.41,35.5123]
[1746409979845,6.9712,143.44,143.41,28.54]
[1746409980347,6.1887,143.49,143.41,28.54]
[1746409981747,6.9715,143.44,143.41,28.54]
[1746409982348,6.9708,143.45,143.41,28.54]
[1746409983443,6.1887,143.49,143.41,28.54]
[1746409984046,6.971,143.45,143.41,35.5126]
[1746409984247,6.1887,143.49,143.41,35.5126]
[1746409985145,6.1887,143.49,143.42,6.972]
[1746409985352,28.54,143.5,143.41,28.54]
[1746409985650,358.0,143.58,143.41,28.54]
[1746409985651,6.969,143.49,143.45,6.9703]
[1746409985949,28.54,143.53,143.44,28.54]
[1746409986449,6.969,143.49,143.45,6.9704]
[1746409986954,6.969,143.49,143.46,6.97]
[1746409987450,6.9684,143.5,143.47,6.9695]
[1746409988352,6.9679,143.51,143.47,6.9695]
[1746409989152,34.6137,143.56,143.49,6.9686]
[1746409989349,34.6137,143.56,143.45,5.37296935]
[1746409989848,6.9676,143.52,143.48,6.969]
[1746409991254,34.6137,143.56,143.48,6.969]
[1746409991756,4.40803241,143.55,143.48,6.969]
[1746409991952,34.6137,143.56,143.48,6.969]
[1746409992354,6.9676,143.52,143.49,6.9687]
[1746409992753,30.5544,143.56,143.48,28.36]
[1746409992954,6.9671,143.53,143.48,28.36]
[1746409993159,6.9671,143.53,143.5,6.9682]
[1746409993655,6.9671,143.53,143.48,35.3289]
[1746409994456,30.5544,143.56,143.48,28.36]
[1746409994959,6.9678,143.51,143.48,28.36]
[1746409995255,6.9678,143.51,143.48,35.3291]
[1746409996158,6.9674,143.52,143.48,35.3291]
[1746409996359,28.54,143.56,143.49,6.9686]
[1746409996559,4.41335225,143.55,143.49,6.9686]
[1746409996759,6.967,143.53,143.49,6.9686]
[1746409996960,6.967,143.53,143.49,11.131]
[1746409997463,6.967,143.53,143.5,6.9682]
[1746409998164,6.967,143.53,143.49,11.131]
[1746409999664,6.967,143.53,143.49,4.1624]
[1746409999864,5.37296935,143.57,143.49,4.1624]
[1746410000067,4.41311483,143.56,143.49,4.1624]
[1746410000267,6.9682,143.5,143.49,4.1624]
[1746410000566,5.37296935,143.57,143.49,4.1624]
[1746410000865,6.9681,143.51,143.49,4.1624]
[1746410007871,6.9684,143.5,143.48,28.36]
[1746410010474,6.9679,143.51,143.48,28.36]
[1746410014577,6.9679,143.51,143.48,35.3292]
[1746410016079,6.9679,143.51,143.48,28.36]
[1746410017381,28.36,143.55,143.45,28.34]
[1746410017579,9.44679011,143.54,143.45,28.34]
[1746410017878,7.44759011,143.53,143.45,28.34]
[1746410018081,6.9695,143.48,143.45,35.3103]
[1746410019081,6.9695,143.48,143.45,28.34]
[1746410019376,5.37296935,143.52,143.45,28.34]
[1746410019582,35.78993813,143.51,143.45,28.34]
[1746410019776,7.44983725,143.5,143.43,9.011]
[1746410019975,6.97,143.47,143.43,2.0398]
[1746410020177,28.34,143.51,143.45,6.9707]
[1746410020376,6.9695,143.48,143.45,6.9707]
[1746410021082,6.9697,143.47,143.44,6.971]
[1746410022479,6.9688,143.49,143.45,6.9706]
[1746410022686,30.1792,143.54,143.44,4.2174]
[1746410022985,6.9686,143.5,143.46,6.9699]
[1746410023186,30.1792,143.54,143.44,4.2174]
[1746410023390,6.9679,143.51,143.47,6.9694]
[1746410023877,28.18,143.54,143.46,28.18]
[1746410024080,6.9684,143.5,143.46,35.1499]
[1746410024485,28.18,143.54,143.46,28.18]
[1746410024684,7.43871366,143.53,143.46,28.18]
[1746410024880,6.969,143.49,143.46,28.18]
[1746410026082,6.9695,143.48,143.46,28.18]
[1746410026282,28.18,143.54,143.46,28.18]
[1746410026482,7.44059391,143.53,143.44,11.1883]
[1746410026682,30.2799,143.54,143.44,11.1883]
[1746410026683,7.44059391,143.52,143.44,11.1883]
[1746410026883,6.97,143.47,143.44,11.1883]
[1746410028087,6.9702,143.46,143.44,4.2174]
[1746410028490,30.2799,143.54,143.44,4.2174]
[1746410028688,7.45231608,143.53,143.44,4.2174]
[1746410028884,7.45231608,143.52,143.44,4.2174]
[1746410029092,7.45231608,143.51,143.43,28.18]
[1746410029391,5.37296935,143.49,143.43,28.18]
[1746410029588,4.45880838,143.48,143.4,28.18]
[1746410029787,4.45880838,143.47,143.4,28.18]
[1746410029989,4.45880838,143.46,143.4,28.18]
[1746410030189,5.37296935,143.49,143.41,6.9725]
[1746410030389,7.45372471,143.48,143.41,6.9725]
[1746410030585,4.45977668,143.47,143.41,6.9725]
[1746410030784,6.9712,143.44,143.41,6.9725]
[1746410030987,5.37296935,143.49,143.4,28.18]
[1746410031290,6.9719,143.43,143.4,28.18]
[1746410031686,7.46786935,143.49,143.4,28.18]
[1746410031888,7.4594834,143.48,143.4,28.18]
[1746410032088,7.46786935,143.49,143.4,28.18]
[1746410032089,4.46550615,143.47,143.4,28.18]
[1746410032290,4.46550615,143.46,143.4,35.1531]
[1746410032490,7.46786935,143.49,143.4,35.1531]
[1746410032693,7.45728436,143.48,143.4,35.1531]
[1746410032892,4.46370739,143.47,143.4,35.1531]
[1746410033093,4.46370739,143.46,143.4,35.1531]
[1746410033293,6.972,143.43,143.4,35.1531]
[1746410033491,6.972,143.43,143.4,28.18]
[1746410033792,7.46786935,143.49,143.4,28.18]
[1746410033984,6.972,143.43,143.4,28.18]
[1746410034494,6.972,143.43,143.4,35.1531]
[1746410035490,5.37296935,143.49,143.4,28.18]
[1746410035690,4.46485537,143.48,143.41,5.37296935]
[1746410035885,28.18,143.5,143.42,2.1529]
[1746410036090,11.43389944,143.49,143.42,2.1529]
[1746410036292,28.18,143.5,143.43,4.1091]
[1746410036493,4.46413246,143.49,143.43,11.0805]
[1746410036695,4.46427478,143.48,143.43,4.1091]
[1746410036895,28.18,143.5,143.43,4.1091]
[1746410037092,6.9701,143.47,143.43,11.0807]
[1746410037497,28.18,143.5,143.43,11.0807]
[1746410037795,6.9705,143.46,143.43,11.0807]
[1746410038000,28.18,143.5,143.43,4.1091]
[1746410038298,4.47013857,143.49,143.43,4.1091]
[1746410038599,4.47013857,143.48,143.41,6.9725]
[1746410038800,4.47013857,143.47,143.41,6.9725]
[1746410039096,5.37296935,143.49,143.41,6.9725]
[1746410039396,4.47161809,143.48,143.41,6.9725]
[1746410039598,4.47161809,143.47,143.4,35.1531]
[1746410039797,4.471384,143.46,143.4,35.1531]
[1746410039994,5.37296935,143.49,143.4,35.1531]
[1746410040194,6.9717,143.43,143.4,35.1531]
[1746410040800,6.9713,143.44,143.41,6.9726]
[1746410041099,11.63326935,143.49,143.4,28.18]
[1746410041302,4.47303418,143.48,143.4,28.18]
[1746410041502,6.9715,143.44,143.4,35.1529]
[1746410041794,11.63326935,143.49,143.4,35.1529]
[1746410041998,7.46500986,143.48,143.4,35.1529]
[1746410042199,7.46421848,143.47,143.4,35.1529]
[1746410042501,4.47193244,143.46,143.4,35.1529]
[1746410042797,11.63326935,143.49,143.4,28.18]
[1746410043002,7.44847781,143.48,143.4,28.18]
[1746410043202,4.4566962,143.47,143.4,28.18]
[1746410043503,6.971,143.45,143.4,28.18]
[1746410044401,6.9703,143.46,143.4,28.18]
[1746410044598,28.18,143.5,143.41,5.37296935]
[1746410044805,4.44320236,143.49,143.41,5.37296935]
[1746410045002,11.41290236,143.48,143.42,2.1793]
[1746410045303,28.18,143.5,143.44,6.9711]
[1746410045505,4.44222088,143.49,143.44,35.1711]
[1746410045695,4.44222088,143.48,143.44,35.1711]
[1746410046004,28.18,143.5,143.44,35.1711]
[1746410046207,4.44348847,143.49,143.44,35.1711]
[1746410046404,28.18,143.5,143.44,35.1711]
[1746410046604,4.43824545,143.49,143.44,35.1711]
[1746410046805,4.43824545,143.48,143.44,35.1711]
[1746410047005,28.18,143.5,143.44,35.1711]
[1746410047303,6.9696,143.48,143.44,35.1711]
[1746410047504,4.43805638,143.49,143.44,35.1711]
[1746410047505,28.18,143.5,143.44,35.1711]
[1746410047702,4.43818018,143.49,143.44,35.1711]
[1746410047904,4.4372651,143.48,143.44,35.1711]
[1746410048202,6.9698,143.47,143.44,35.1711]
[1746410048411,28.18,143.5,143.45,6.9707]
[1746410049104,11.40764462,143.49,143.45,6.9707]
[1746410049304,6.9689,143.49,143.45,6.9707]
[1746410051510,6.9694,143.48,143.45,6.9707]
[1746410052011,6.9694,143.48,143.44,35.1709]
[1746410053911,6.9697,143.47,143.44,35.1709]
[1746410054512,6.9694,143.48,143.44,35.1709]
[1746410056213,6.9697,143.47,143.44,35.1709]
[1746410056513,5.37296935,143.52,143.44,35.1709]
[1746410056707,6.9695,143.48,143.44,35.1709]
[1746410056912,6.9695,143.48,143.45,6.9707]
[1746410057414,6.9698,143.47,143.44,35.171]
[1746410058113,6.9695,143.48,143.44,35.171]
[1746410058411,6.9695,143.48,143.45,6.9706]
[1746410059116,11.69006935,143.55,143.44,33.57296935]
[1746410059319,7.46034678,143.54,143.44,33.57296935]
[1746410059515,4.4617599,143.53,143.44,33.57296935]
[1746410059712,11.42765815,143.52,143.44,33.57296935]
[1746410059912,6.9675,143.52,143.44,33.57296935]
[1746410060713,28.02,143.56,143.44,33.57296935]
[1746410061319,6.9668,143.53,143.49,6.9684]
[1746410062119,6.9668,143.53,143.5,6.9682]
[1746410062320,6.9674,143.52,143.48,28.02]
[1746410063723,6.9674,143.52,143.48,34.989]
[1746410064022,28.02,143.56,143.48,34.989]
[1746410064023,6.9679,143.51,143.48,28.02]
[1746410064723,6.9684,143.5,143.48,28.02]
[1746410064924,5.37296935,143.52,143.45,6.9702]
[1746410065324,6.969,143.49,143.45,6.9702]
[1746410066124,6.969,143.49,143.46,6.9702]
[1746410068734,6.969,143.49,143.45,6.9705]
[1746410069627,6.9693,143.48,143.45,6.9705]
[1746410069829,6.9693,143.48,143.44,34.9911]
[1746410070323,6.9703,143.46,143.44,28.02]
[1746410072925,6.9707,143.45,143.44,28.02]
[1746410073132,28.02,143.48,143.41,28.02]
[1746410073628,6.9715,143.44,143.41,28.02]
[1746410074236,6.9709,143.45,143.41,34.9926]
[1746410077032,6.9712,143.44,143.41,34.9926]
[1746410078331,6.9708,143.45,143.41,34.9926]
[1746410078534,28.02,143.48,143.41,28.02]
[1746410078835,28.02,143.48,143.42,2.0526]
[1746410079227,6.9701,143.47,143.43,6.9716]
[1746410079433,28.02,143.48,143.43,6.9716]
[1746410080235,6.9702,143.46,143.43,6.9716]
[1746410081238,6.9698,143.47,143.43,6.9716]
[1746410081430,6.9698,143.47,143.44,6.971]
[1746410082236,6.9693,143.48,143.44,6.971]
[1746410082437,6.9693,143.48,143.45,6.9706]
[1746410083037,6.9693,143.48,143.44,6.971]
[1746410086240,28.02,143.51,143.42,6.1415]
[1746410086743,6.97,143.47,143.43,6.9716]
[1746410090343,6.9702,143.46,143.43,6.9716]
[1746410091842,6.9702,143.46,143.42,13.1135]
[1746410093444,6.9702,143.46,143.43,6.9716]
[1746410097040,28.02,143.51,143.43,6.9716]
[1746410097245,6.9699,143.47,143.43,6.9716]
[1746410100949,6.9702,143.46,143.43,6.9716]
[1746410103448,28.02,143.51,143.42,4.1059]
[1746410103650,28.02,143.51,143.42,6.1632]
[1746410103851,6.9693,143.48,143.44,6.9709]
[1746410104652,6.9698,143.47,143.43,6.9715]
[1746410104855,28.02,143.51,143.43,6.9715]
[1746410105051,2.9919288,143.5,143.43,6.9715]
[1746410105253,6.9701,143.47,143.43,6.9715]
[1746410105555,28.02,143.51,143.43,6.9715]
[1746410105849,2.99244072,143.5,143.43,6.9715]
[1746410106042,28.02,143.51,143.43,6.9715]
[1746410106239,2.99356443,143.5,143.43,6.9715]
[1746410106443,2.99356443,143.49,143.43,6.9715]
[1746410106642,6.9705,143.46,143.43,6.9715]
[1746410108853,5.35828555,143.5,143.41,28.02]
[1746410109051,2.99715357,143.49,143.41,28.02]
[1746410109250,2.99675717,143.48,143.41,28.02]
[1746410109451,6.9714,143.44,143.41,28.02]
[1746410109851,27.86,143.47,143.39,2.0573]
[1746410110050,2.9979442,143.46,143.38,27.86]
[1746410110351,6.9724,143.42,143.39,6.9735]
[1746410110553,33.21828555,143.47,143.38,27.86]
[1746410110752,5.35828555,143.44,143.38,27.86]
[1746410110952,3.00412805,143.43,143.36,552.0]
[1746410111153,27.86,143.43,143.35,27.86]
[1746410111853,34.8321,143.43,143.38,6.9738]
[1746410112055,6.9721,143.43,143.38,6.9738]
[1746410112253,6.9721,143.43,143.35,27.86]
[1746410112450,6.9721,143.42,143.35,27.86]
[1746410112955,6.9718,143.43,143.39,6.9734]
[1746410113945,6.9721,143.42,143.39,6.9734]
[1746410114255,6.9721,143.42,143.38,6.9739]
[1746410114761,27.86,143.46,143.37,6.9744]
[1746410115052,8.3604601,143.45,143.37,6.9744]
[1746410115255,3.00217455,143.44,143.37,6.9744]
[1746410115457,5.35828555,143.45,143.35,27.86]
[1746410115653,27.86,143.46,143.35,27.86]
[1746410115855,4.148,143.48,143.37,5.35828555]
[1746410116158,27.7,143.49,143.38,4.076]
[1746410116363,27.7,143.49,143.4,5.35828555]
[1746410116656,6.9695,143.48,143.4,5.35828555]
[1746410117758,6.9695,143.48,143.43,6.9712]
[1746410117959,6.9699,143.47,143.43,34.6712]
[1746410118657,6.9699,143.47,143.44,6.9711]
[1746410119862,6.9694,143.48,143.44,6.9711]
[1746410120259,6.9694,143.48,143.45,6.9707]
[1746410121267,6.9694,143.48,143.44,6.971]
[1746410122163,6.9694,143.48,143.45,6.9706]
[1746410122762,6.9694,143.48,143.44,6.971]
[1746410124368,6.9694,143.48,143.45,6.9707]
[1746410125068,6.9694,143.48,143.44,6.971]